bitfinex-derivatives/quotes_SOLF0:USTF0_20250803
["timestamp","ask_amount","ask_price","bid_price","bid_amount"]
[1754263303406,3.41,162.46,162.39,3.4]
[1754263304711,7.22790185,162.51,162.41,6.1571]
[1754263305018,3.37,162.5,162.42,3.41]
[1754263305318,3.37,162.49,162.42,3.41]
[1754263307018,3.37,162.45,162.43,3.41]
[1754263307312,3.37,162.5,162.41,7.22790185]
[1754263307508,3.37,162.49,162.42,3.41]
[1754263307911,3.37,162.49,162.4,3.41]
[1754263308118,3.37,162.45,162.4,3.41]
[1754263308317,3.37,162.45,162.42,6.1564]
[1754263308517,3.37,162.47,162.45,3.41]
[1754263308816,3.37,162.52,162.45,3.41]
[1754263309017,3.37,162.52,162.46,3.41]
[1754263309211,3.37,162.52,162.41,7.22790185]
[1754263309418,3.37,162.52,162.44,6.1557]
[1754263309618,3.37,162.52,162.45,3.41]
[1754263310021,3.37,162.52,162.42,3.41]
[1754263310314,3.37,162.51,162.45,3.41]
[1754263311018,6.1539,162.5,162.46,6.1549]
[1754263311217,3.37,162.49,162.48,3.41]
[1754263312221,3.37,162.55,162.46,3.41]
[1754263312624,3.37,162.48,162.47,3.41]
[1754263313117,3.37,162.55,162.45,3.41]
[1754263313323,3.37,162.48,162.47,3.41]
[1754263318319,6.1543,162.49,162.47,3.41]
[1754263318923,6.1538,162.5,162.45,6.1556]
[1754263319122,3.37,162.49,162.48,3.41]
[1754263319721,9.5241,162.49,162.48,3.41]
[1754263320527,9.5241,162.49,162.43,7.22790185]
[1754263320823,3.37,162.47,162.45,3.41]
[1754263321019,3.37,162.47,162.4,3.41]
[1754263321216,3.37,162.44,162.4,3.41]
[1754263321420,3.37,162.47,162.4,3.41]
[1754263322220,11.4263143,162.48,162.4,3.41]
[1754263322221,3.37,162.45,162.4,3.41]
[1754263322530,3.37,162.43,162.39,3.41]
[1754263323124,3.37,162.43,162.4,3.41]
[1754263323319,3.37,162.42,162.41,3.41]
[1754263323629,3.37,162.41,162.38,3.41]
[1754263323830,3.37,162.43,162.4,3.41]
[1754263324025,6.91238111,162.47,162.4,3.41]
[1754263324228,10.28238111,162.48,162.42,3.41]
[1754263324433,3.37,162.48,162.42,3.41]
[1754263324827,3.37,162.46,162.42,3.41]
[1754263325330,3.37,162.46,162.42,9.5664]
[1754263325636,10.28238111,162.5,162.44,3.41]
[1754263325824,3.37,162.49,162.44,3.41]
[1754263326226,3.37,162.48,162.45,3.41]
[1754263326821,6.91238111,162.51,162.45,3.41]
[1754263327028,3.37,162.51,162.46,3.41]
[1754263327228,10.28238111,162.53,162.48,3.41]
[1754263327527,10.28238111,162.53,162.47,4.51393319]
[1754263327528,3.37,162.53,162.51,3.41]
[1754263327728,6.91238111,162.54,162.47,4.51393319]
[1754263328030,3.37,162.51,162.48,6.1542]
[1754263329832,3.37,162.51,162.49,2.22]
[1754263331231,4.51393319,162.54,162.46,4.51393319]
[1754263331442,3.37,162.53,162.47,8.3747]
[1754263331733,6.91238111,162.55,162.46,4.51393319]
[1754263331936,10.28238111,162.59,162.56,2.22]
[1754263332130,3.37,162.59,162.57,2.22]
[1754263332437,3.37,162.6,162.57,2.22]
[1754263332936,6.1491,162.63,162.57,8.3707]
[1754263333244,4.51393319,162.66,162.56,4.51393319]
[1754263333428,3.37,162.58,162.56,6.73393319]
[1754263333629,3.37,162.61,162.52,6.73393319]
[1754263334137,3.19,162.61,162.52,6.73393319]
[1754263334536,3.19,162.57,162.52,12.88673319]
[1754263334735,3.19,162.57,162.5,4.51393319]
[1754263335446,3.19,162.57,162.5,6.73393319]
[1754263335940,3.19,162.54,162.5,2.22]
[1754263336239,3.19,162.54,162.48,6.73393319]
[1754263336645,3.19,162.57,162.51,2.22]
[1754263338339,6.1511,162.57,162.52,6.1526]
[1754263338540,3.19,162.55,162.53,2.22]
[1754263338740,6.1511,162.57,162.55,2.22]
[1754263338741,3.19,162.57,162.55,2.22]
[1754263339049,7.21480065,162.62,162.5,7.21480065]
[1754263339344,179.53377516,162.7,162.46,115.58]
[1754263339345,3.19,162.59,162.56,2.22]
[1754263339544,3.19,162.58,162.56,2.22]
[1754263339743,3.19,162.65,162.54,2.22]
[1754263340040,6.1496,162.61,162.55,6.1517]
[1754263340245,3.19,162.6,162.55,6.1517]
[1754263340646,3.19,162.6,162.56,2.22]
[1754263340847,3.19,162.59,162.56,2.22]
[1754263341146,3.19,162.58,162.56,2.22]
[1754263341347,6.1492,162.62,162.57,2.22]
[1754263341748,3.19,162.61,162.57,2.22]
[1754263342341,3.19,162.61,162.56,6.1513]
[1754263342554,3.19,162.61,162.56,8.3713]
[1754263343441,3.19,162.6,162.56,8.3713]
[1754263343640,3.19,162.6,162.54,2.22]
[1754263344146,3.19,162.58,162.52,6.1527]
[1754263344447,3.19,162.58,162.52,2.22]
[1754263344643,3.19,162.63,162.54,2.22]
[1754263345143,6.1494,162.62,162.56,6.1511]
[1754263345342,3.19,162.61,162.57,2.22]
[1754263345939,3.19,162.6,162.55,2.22]
[1754263346450,3.19,162.6,162.56,2.22]
[1754263346653,3.19,162.59,162.56,2.22]
[1754263346846,3.19,162.59,162.57,2.22]
[1754263347052,3.19,162.65,162.57,2.22]
[1754263347447,3.19,162.65,162.6,8.3699]
[1754263348257,9.3383,162.65,162.6,8.3699]
[1754263348448,3.19,162.64,162.59,8.3702]
[1754263348850,3.19,162.64,162.56,2.22]
[1754263349756,3.19,162.64,162.58,6.1506]
[1754263349757,6.149,162.63,162.58,6.1506]
[1754263350054,3.19,162.62,162.55,7.21480065]
[1754263350455,6.1498,162.61,162.56,6.1513]
[1754263350654,3.19,162.6,162.56,6.1513]
[1754263350949,7.21480065,162.63,162.52,9.43480065]
[1754263351153,7.21480065,162.63,162.52,7.21480065]
[1754263351154,3.19,162.62,162.52,7.21480065]
[1754263351349,3.19,162.62,162.53,2.22]
[1754263351855,3.19,162.63,162.56,2.22]
[1754263352049,3.19,162.63,162.58,7.21480065]
[1754263352259,3.19,162.63,162.61,2.22]
[1754263352647,3.19,162.63,162.61,6.1494]
[1754263352950,3.19,162.63,162.6,2.22]
[1754263353355,3.19,162.63,162.58,9.43480065]
[1754263354052,3.19,162.63,162.58,8.3706]
[1754263354252,3.19,162.63,162.58,2.22]
[1754263355160,3.19,162.63,162.58,8.3705]
[1754263355454,3.19,162.63,162.55,7.21480065]
[1754263355455,3.19,162.63,162.55,2.22]
[1754263356060,3.19,162.59,162.55,8.3717]
[1754263356353,3.19,162.59,162.55,6.1517]
[1754263356555,9.3405,162.59,162.54,6.1521]
[1754263356750,3.19,162.59,162.5,2.22]
[1754263357650,6.1513,162.57,162.52,6.1526]
[1754263357853,3.19,162.59,162.52,6.1526]
[1754263358347,3.19,162.56,162.52,6.1526]
[1754263358753,3.19,162.56,162.52,8.3726]
[1754263358952,3.19,162.56,162.53,6.1526]
[1754263359253,6.1514,162.57,162.53,6.1526]
[1754263359254,3.19,162.55,162.53,6.1526]
[1754263361960,6.1514,162.57,162.53,6.1526]
[1754263362256,3.19,162.55,162.52,6.1529]
[1754263362457,3.19,162.55,162.5,2.22]
[1754263362651,3.19,162.53,162.49,6.1538]
[1754263363250,3.19,162.53,162.49,8.3738]
[1754263363757,3.19,162.52,162.48,6.1543]
[1754263364061,3.19,162.52,162.47,2.22]
[1754263364252,6.153,162.52,162.48,6.1543]
[1754263364456,3.29,162.57,162.47,2.22]
[1754263364965,3.29,162.52,162.48,6.1544]
[1754263365455,3.29,162.5,162.48,6.1544]
[1754263365655,3.29,162.49,162.48,6.1544]
[1754263366264,7.21480065,162.58,162.45,117.74]
[1754263366265,3.29,162.5,162.45,117.74]
[1754263366465,3.29,162.5,162.45,115.52]
[1754263366958,7.21480065,162.55,162.45,115.52]
[1754263367161,3.29,162.47,162.45,115.52]
[1754263367361,3.29,162.47,162.46,6.1552]
[1754263370864,4.51385505,162.52,162.45,115.52]
[1754263371069,3.29,162.51,162.45,115.52]
[1754263371574,3.29,162.48,162.45,115.52]
[1754263371876,3.29,162.48,162.45,121.6755]
[1754263372175,6.1539,162.5,162.45,121.6755]
[1754263372472,3.29,162.47,162.45,123.8955]
[1754263373969,6.1541,162.49,162.45,123.8955]
[1754263374173,3.29,162.46,162.45,123.8955]
[1754263374869,3.29,162.49,162.45,123.8955]
[1754263377381,3.29,162.49,162.46,6.1551]
[1754263378275,3.29,162.51,162.46,2.22]
[1754263378578,3.29,162.5,162.46,2.22]
[1754263378772,4.51385505,162.54,162.46,2.22]
[1754263378975,3.29,162.49,162.45,115.52]
[1754263379277,3.29,162.49,162.47,8.3748]
[1754263379478,3.29,162.49,162.47,2.22]
[1754263380071,3.29,162.49,162.47,8.3747]
[1754263380274,3.29,162.48,162.46,2.22]
[1754263380474,3.29,162.48,162.47,2.22]
[1754263381375,3.29,162.48,162.47,8.3748]
[1754263382876,3.29,162.51,162.48,6.1543]
[1754263383078,3.29,162.51,162.48,8.3743]
[1754263383473,3.29,162.53,162.49,6.1538]
[1754263383673,4.51385505,162.52,162.45,117.74]
[1754263383878,3.29,162.51,162.45,117.74]
[1754263384086,3.29,162.49,162.46,6.1551]
[1754263384980,3.29,162.49,162.42,413.56]
[1754263385180,6.91238111,162.56,162.42,413.56]
[1754263385181,4.51385505,162.48,162.42,528.48]
[1754263385373,3.29,162.47,162.42,528.48]
[1754263385580,3.29,162.47,162.42,530.7]
[1754263385781,3.29,162.45,162.42,530.7]
[1754263385978,3.29,162.49,162.43,2.22]
[1754263386182,6.1547,162.48,162.44,6.1558]
[1754263386390,3.29,162.47,162.44,2.22]
[1754263387677,3.29,162.46,162.43,2.22]
[1754263387877,3.29,162.46,162.42,534.6366]
[1754263388184,3.29,162.46,162.31,244.90599582]
[1754263388185,3.29,162.45,162.38,6.158]
[1754263388482,4.51385505,162.44,162.37,2.22]
[1754263388681,6.1561,162.44,162.39,2.22]
[1754263388985,3.29,162.43,162.39,2.22]
[1754263389174,3.29,162.43,162.39,8.3778]
[1754263389372,4.51385505,162.48,162.4,2.22]
[1754263389579,3.29,162.46,162.4,2.22]
[1754263389778,3.29,162.43,162.38,121.67385505]
[1754263390183,6.1568,162.42,162.38,121.67385505]
[1754263390485,3.29,162.41,162.38,117.16]
[1754263390887,3.29,162.4,162.38,117.16]
[1754263391880,3.29,162.4,162.38,114.94]
[1754263392081,3.29,162.4,162.39,2.22]
[1754263392387,3.29,162.4,162.39,8.3778]
[1754263393286,3.29,162.42,162.4,8.3772]
[1754263393487,3.29,162.45,162.38,121.67385505]
[1754263393675,3.29,162.45,162.38,114.94]
[1754263393878,3.29,162.45,162.38,121.0981]
[1754263394387,6.1567,162.43,162.38,121.0981]
[1754263394690,3.28,162.42,162.38,123.3181]
[1754263395188,3.28,162.42,162.38,114.94]
[1754263395688,3.28,162.39,162.38,114.94]
[1754263396086,6.1572,162.41,162.36,2.22]
[1754263396384,3.28,162.38,162.36,2.22]
[1754263396589,3.28,162.38,162.37,2.22]
[1754263396788,3.28,162.38,162.37,8.3786]
[1754263396988,6.91238111,162.49,162.37,2.22]
[1754263397288,3.28,162.43,162.41,2.22]
[1754263397480,3.28,162.42,162.41,2.22]
[1754263398282,3.28,162.42,162.4,114.96]
[1754263398579,3.28,162.42,162.4,117.18]
[1754263399797,3.28,162.42,162.4,123.3372]
[1754263399989,3.28,162.42,162.4,117.18]
[1754263400491,3.28,162.42,162.41,6.1571]
[1754263401093,3.28,162.42,162.4,121.1174]
[1754263401291,3.28,162.42,162.4,117.18]
[1754263401491,4.51385505,162.48,162.41,2.22]
[1754263401791,3.28,162.46,162.42,2.22]
[1754263402093,3.28,162.44,162.42,2.22]
[1754263402393,3.28,162.45,162.42,2.22]
[1754263403192,3.28,162.45,162.43,6.1563]
[1754263403493,6.1548,162.48,162.41,2.22]
[1754263403689,3.28,162.49,162.45,6.1553]
[1754263403890,3.28,162.49,162.45,8.3753]
[1754263403891,9.4343,162.49,162.45,8.3753]
[1754263404095,3.28,162.48,162.45,8.3753]
[1754263405195,3.28,162.47,162.41,2.22]
[1754263405893,4.51385505,162.5,162.42,6.1567]
[1754263406196,3.28,162.45,162.41,2.22]
[1754263406587,3.28,162.45,162.43,6.1563]
[1754263407186,6.1553,162.46,162.43,6.1563]
[1754263407597,3.28,162.44,162.43,6.1563]
[1754263407790,3.28,162.44,162.43,8.3763]
[1754263408694,3.28,162.44,162.4,119.47385505]
[1754263408895,3.28,162.43,162.42,6.1566]
[1754263410493,3.28,162.43,162.41,8.377]
[1754263410696,3.28,162.48,162.41,6.157]
[1754263411097,6.1558,162.45,162.41,6.157]
[1754263411401,3.28,162.44,162.41,6.157]
[1754263412903,3.28,162.44,162.41,8.377]
[1754263413101,3.28,162.44,162.4,114.96]
[1754263413302,3.28,162.42,162.4,114.96]
[1754263413896,3.28,162.41,162.4,114.96]
[1754263414506,3.28,162.41,162.4,121.1174]
[1754263414707,3.28,162.41,162.36,6.73385505]
[1754263414905,3.28,162.41,162.37,2.22]
[1754263415105,3.28,162.41,162.37,8.3785]
[1754263415502,3.28,162.41,162.37,6.1585]
[1754263415699,3.28,162.41,162.38,2.22]
[1754263416901,3.28,162.4,162.37,6.1585]
[1754263417106,3.28,162.4,162.36,123.3388]
[1754263417503,3.28,162.38,162.36,114.96]
[1754263417703,3.28,162.38,162.34,2.22]
[1754263417902,3.28,162.38,162.33,413.52]
[1754263418104,6.1589,162.37,162.33,114.94]
[1754263418302,3.28,162.36,162.33,114.94]
[1754263418604,9.439,162.36,162.33,114.94]
[1754263418808,3.28,162.35,162.33,114.94]
[1754263419309,4.51385505,162.39,162.33,114.94]
[1754263419310,3.28,162.34,162.33,114.94]
[1754263419517,3.28,162.34,162.33,117.16]
[1754263420202,3.28,162.34,162.33,123.3201]
[1754263421196,3.28,162.36,162.34,6.1596]
[1754263421403,6.91238111,162.43,162.34,6.1596]
[1754263421404,3.28,162.38,162.34,2.22]
[1754263421702,6.1565,162.43,162.38,6.1579]
[1754263421909,3.28,162.41,162.38,8.3779]
[1754263422112,3.28,162.4,162.38,8.3779]
[1754263422406,3.28,162.39,162.38,8.3779]
[1754263422711,3.28,162.39,162.37,121.1186]
[1754263422908,3.28,162.38,162.37,114.96]
[1754263423107,3.28,162.4,162.37,117.18]
[1754263423310,3.28,162.39,162.38,2.22]
[1754263423812,3.28,162.39,162.37,114.96]
[1754263424009,3.28,162.39,162.37,117.17]
[1754263424308,3.28,162.39,162.38,6.158]
[1754263424507,3.28,162.39,162.38,8.368]
[1754263424911,3.49,162.41,162.39,2.21]
[1754263425214,3.49,162.41,162.4,2.21]
[1754263425505,3.49,162.41,162.37,119.47385505]
[1754263425506,3.49,162.4,162.39,6.1577]
[1754263426811,3.49,162.43,162.38,2.21]
[1754263427109,3.49,162.46,162.41,4.51385505]
[1754263427311,6.91238111,162.47,162.44,6.1559]
[1754263427505,3.49,162.46,162.44,2.21]
[1754263428210,13.06688111,162.48,162.44,2.21]
[1754263428413,3.49,162.47,162.43,4.51385505]
[1754263428609,3.49,162.47,162.43,6.72385505]
[1754263429010,6.1545,162.48,162.43,6.72385505]
[1754263429215,3.49,162.46,162.43,4.51385505]
[1754263429411,6.91238111,162.48,162.43,4.51385505]
[1754263429710,3.49,162.47,162.43,6.72385505]
[1754263429911,3.49,162.47,162.44,6.1557]
[1754263430312,3.49,162.47,162.43,6.72385505]
[1754263430514,3.49,162.48,162.43,6.72385505]
[1754263430711,3.49,162.48,162.44,2.21]
[1754263431115,3.49,162.48,162.45,6.1553]
[1754263431815,3.49,162.48,162.45,6.1555]
[1754263432016,3.49,162.47,162.45,2.21]
[1754263432216,3.49,162.47,162.46,2.21]
[1754263432816,3.49,162.47,162.46,8.3652]
[1754263434412,3.49,162.47,162.46,6.1552]
[1754263435817,3.49,162.46,162.45,8.3655]
[1754263436421,3.49,162.46,162.45,6.1555]
[1754263438222,3.49,162.46,162.42,4.51385505]
[1754263439022,3.49,162.45,162.4,4.51385505]
[1754263439620,3.49,162.45,162.41,2.21]
[1754263439928,3.49,162.45,162.42,2.21]
[1754263440624,3.49,162.46,162.42,4.51385505]
[1754263440822,6.1549,162.47,162.42,4.51385505]
[1754263440823,3.49,162.45,162.43,2.21]
[1754263441123,3.49,162.44,162.43,2.21]
[1754263441323,3.49,162.44,162.43,8.3662]
[1754263442328,3.49,162.45,162.42,10.67055505]
[1754263442827,9.6439,162.5,162.44,4.51385505]
[1754263443025,6.1539,162.5,162.45,2.21]
[1754263443327,3.49,162.49,162.44,6.72385505]
[1754263443529,3.49,162.48,162.44,6.72385505]
[1754263443826,3.49,162.48,162.44,4.51385505]
[1754263444328,3.49,162.48,162.44,10.66965505]
[1754263444525,3.49,162.48,162.44,4.51385505]
[1754263445227,3.49,162.48,162.45,6.1555]
[1754263445924,169.11857205,162.52,162.43,2.21]
[1754263445925,3.49,162.51,162.46,4.51385505]
[1754263446230,3.49,162.51,162.45,2.21]
[1754263446424,3.49,162.51,162.45,6.72385505]
[1754263447423,3.49,162.51,162.47,6.1545]
[1754263448222,6.1534,162.51,162.47,6.1545]
[1754263448425,3.49,162.5,162.47,6.1545]
[1754263449718,3.49,162.54,162.49,4.51385505]
[1754263449921,3.49,162.54,162.49,6.72385505]
[1754263450225,3.49,162.54,162.5,6.1534]
[1754263450828,3.49,162.54,162.49,6.72385505]
[1754263451925,3.49,162.54,162.51,6.1532]
[1754263452625,9.6423,162.54,162.5,6.1536]
[1754263452835,3.49,162.53,162.5,6.1536]
[1754263453925,3.22,162.52,162.47,4.51385505]
[1754263454537,3.22,162.52,162.47,6.1545]
[1754263454734,6.1536,162.51,162.46,117.08]
[1754263454934,3.22,162.5,162.46,117.08]
[1754263455237,3.22,162.5,162.47,6.1547]
[1754263455639,3.22,162.5,162.46,117.08]
[1754263456139,3.22,162.5,162.46,121.59385505]
[1754263456338,3.22,162.5,162.48,6.1543]
[1754263456539,6.1536,162.51,162.48,6.1543]
[1754263456839,3.22,162.49,162.48,6.1543]
[1754263458844,3.22,162.56,162.49,2.22]
[1754263459344,3.22,162.56,162.51,6.1532]
[1754263460046,3.22,162.54,162.51,6.1532]
[1754263462350,3.22,162.54,162.48,4.51385505]
[1754263462754,3.22,162.54,162.51,6.1529]
[1754263462950,3.22,162.54,162.49,2.22]
[1754263463147,3.22,162.54,162.48,4.51385505]
[1754263463452,3.22,162.54,162.5,2.22]
[1754263464146,3.22,162.54,162.51,6.1529]
[1754263464546,3.22,162.54,162.5,2.22]
[1754263465353,3.22,162.54,162.51,6.1531]
[1754263466454,3.22,162.54,162.52,6.1527]
[1754263466654,3.22,162.54,162.5,2.22]
[1754263467453,9.3721,162.54,162.5,8.3733]
[1754263467656,3.22,162.53,162.5,6.1533]
[1754263468355,3.22,162.53,162.5,8.3733]
[1754263469656,3.22,162.53,162.51,2.22]
[1754263470660,6.1518,162.55,162.51,8.3731]
[1754263470955,3.22,162.54,162.51,8.3731]
[1754263471758,3.22,162.54,162.51,6.1531]
[1754263472661,6.1521,162.54,162.5,12.88735505]
[1754263472959,3.22,162.53,162.5,12.88735505]
[1754263473658,3.22,162.52,162.49,8.3739]
[1754263474157,6.1531,162.52,162.48,4.51385505]
[1754263474360,3.22,162.51,162.48,2.22]
[1754263474755,4.6702984,162.5,162.48,2.22]
[1754263475062,3.22,162.56,162.49,2.22]
[1754263475257,11.42623616,162.57,162.48,4.51385505]
[1754263475258,3.22,162.54,162.48,4.51385505]
[1754263475458,3.22,162.52,162.49,2.22]
[1754263475662,4.6704388,162.51,162.49,2.22]
[1754263475854,4.6704388,162.5,162.49,8.3738]
[1754263477258,7.8904388,162.5,162.49,8.3738]
[1754263481963,7.8904388,162.5,162.49,6.1538]
[1754263482663,7.8904388,162.5,162.49,8.3738]
[1754263482854,7.8904388,162.5,162.49,6.1538]
[1754263483259,7.8904388,162.5,162.48,10.66805505]
[1754263483458,7.8904388,162.49,162.48,6.1542]
[1754263484466,3.4,162.48,162.47,6.1546]
[1754263484767,8.0704388,162.48,162.47,6.1546]
[1754263486464,4.6704388,162.48,162.47,8.3746]
[1754263486665,3.4,162.5,162.49,8.374]
[1754263486866,3.4,162.5,162.49,6.154]
[1754263489268,3.4,162.54,162.52,6.1528]
[1754263489476,3.4,162.54,162.5,4.51385505]
[1754263489766,3.4,162.54,162.51,6.1531]
[1754263489971,3.4,162.54,162.5,6.73385505]
[1754263490473,3.4,162.56,162.5,6.73385505]
[1754263490678,3.4,162.55,162.52,2.22]
[1754263490972,6.1508,162.58,162.53,6.1522]
[1754263491173,3.4,162.57,162.53,6.1522]
[1754263491369,3.4,162.58,162.52,4.51385505]
[1754263491569,3.4,162.58,162.54,2.22]
[1754263492364,3.4,162.58,162.55,6.1514]
[1754263493070,3.4,162.58,162.56,6.1513]
[1754263493269,3.4,162.58,162.55,2.22]
[1754263493871,3.4,162.58,162.54,4.51385505]
[1754263494072,3.4,162.58,162.56,2.22]
[1754263494368,6.1492,162.62,162.56,2.22]
[1754263494571,3.4,162.61,162.56,2.22]
[1754263495076,3.4,162.61,162.57,6.1509]
[1754263495264,6.1492,162.62,162.57,6.1509]
[1754263495470,3.4,162.63,162.57,2.22]
[1754263495671,3.4,162.63,162.59,2.22]
[1754263496876,3.4,162.63,162.59,8.37]
[1754263497077,3.4,162.63,162.59,2.22]
[1754263497280,3.4,162.63,162.58,4.51385505]
[1754263497579,3.4,162.63,162.58,2.22]
[1754263498075,6.1491,162.62,162.58,8.3705]
[1754263498269,3.4,162.61,162.58,8.3705]
[1754263498686,3.4,162.59,162.58,8.3705]
[1754263498977,7.88678702,162.59,162.58,8.3705]
[1754263499369,7.88678702,162.59,162.58,2.22]
[1754263500474,3.4,162.59,162.56,10.66505505]
[1754263500679,3.4,162.59,162.54,4.51385505]
[1754263501181,3.4,162.59,162.55,6.1516]
[1754263501381,3.4,162.59,162.55,2.22]
[1754263502077,3.4,162.59,162.56,6.1513]
[1754263502680,3.4,162.59,162.57,6.1509]
[1754263503582,3.4,162.59,162.56,6.1512]
[1754263503782,3.4,162.58,162.55,2.22]
[1754263503978,3.4,162.58,162.54,4.51385505]
[1754263504185,3.4,162.58,162.54,6.73385505]
[1754263504481,3.4,162.58,162.53,114.68]
[1754263504886,9.5506,162.58,162.53,120.8322]
[1754263505183,3.4,162.57,162.53,120.8322]
[1754263506183,3.4,162.57,162.53,123.0522]
[1754263507084,9.551,162.57,162.53,114.68]
[1754263507284,3.4,162.56,162.53,114.68]
[1754263507479,3.4,162.56,162.52,6.1527]
[1754263507781,3.4,162.55,162.49,239.60663282]
[1754263508077,9.5518,162.55,162.49,8.3737]
[1754263508271,3.4,162.54,162.49,2.22]
[1754263508473,3.4,162.54,162.48,2.22]
[1754263508874,3.4,162.54,162.5,2.22]
[1754263509078,3.4,162.54,162.51,2.22]
[1754263509787,3.4,162.54,162.51,6.1529]
[1754263510084,3.4,162.54,162.49,2.22]
[1754263510283,6.1521,162.54,162.5,6.1535]
[1754263510480,3.4,162.53,162.5,6.1535]
[1754263511685,3.4,162.53,162.49,6.1538]
[1754263511888,3.4,162.53,162.47,114.6]
[1754263512487,7.91385505,162.53,162.47,114.6]
[1754263512681,3.4,162.52,162.47,114.6]
[1754263513483,3.4,162.5,162.47,114.6]
[1754263514279,3.4,162.5,162.47,120.7547]
[1754263514883,3.4,162.5,162.47,6.1547]
[1754263515788,3.34,162.49,162.43,116.82]
[1754263515995,3.34,162.48,162.4,2.22]
[1754263516386,3.34,162.46,162.42,6.1563]
[1754263517087,3.34,162.46,162.43,6.1561]
[1754263517288,3.34,162.46,162.43,8.3761]
[1754263519388,3.34,162.46,162.42,6.1565]
[1754263519592,3.34,162.46,162.42,8.3765]
[1754263520281,3.34,162.46,162.4,2.22]
[1754263520885,3.34,162.45,162.41,6.1569]
[1754263521086,3.34,162.45,162.42,2.22]
[1754263521488,3.34,162.45,162.42,8.3763]
[1754263521791,3.34,162.44,162.42,8.3763]
[1754263522090,10.66865505,162.47,162.42,8.3763]
[1754263522289,3.34,162.43,162.42,8.3763]
[1754263523189,6.154,162.49,162.39,532.57385505]
[1754263523395,3.34,162.48,162.42,2.22]
[1754263523894,3.34,162.48,162.45,8.3754]
[1754263524286,3.34,162.49,162.43,4.51385505]
[1754263524491,3.34,162.49,162.45,2.22]
[1754263524690,3.34,162.48,162.45,2.22]
[1754263524891,3.34,162.48,162.47,8.3747]
[1754263526094,7.80960042,162.48,162.47,8.3747]
[1754263527595,4.46960042,162.48,162.47,8.3747]
[1754263530400,7.80960042,162.48,162.47,8.3747]
[1754263531098,7.80960042,162.48,162.47,2.22]
[1754263531300,3.34,162.47,162.44,116.82]
[1754263531901,3.34,162.47,162.45,6.1552]
[1754263532200,3.34,162.46,162.45,6.1552]
[1754263532394,3.34,162.46,162.45,8.3752]
[1754263532601,3.34,162.48,162.45,2.22]
[1754263532914,3.34,162.51,162.45,4.51385505]
[1754263533103,4.46170727,162.5,162.47,2.22]
[1754263533409,7.80170727,162.49,162.47,8.3744]